bitfinex/quotes_BTCUSD_20250110
["timestamp","ask_amount","ask_price","bid_price","bid_amount"]
[1736542988904,0.0010008,94844.0,94843.0,2.59822568]
[1736542989405,8e-07,94844.0,94843.0,2.59822568]
[1736542989522,8e-07,94844.0,94843.0,2.64802568]
[1736542989725,8e-07,94844.0,94843.0,2.68088208]
[1736542989931,8e-07,94844.0,94843.0,2.64802568]
[1736542990353,8e-07,94844.0,94843.0,2.68087823]
[1736542990983,8e-07,94844.0,94843.0,2.64802568]
[1736542992793,8e-07,94844.0,94843.0,2.38432568]
[1736542992998,8e-07,94844.0,94843.0,2.23432568]
[1736542993631,8e-07,94844.0,94843.0,2.40732568]
[1736542997889,8e-07,94844.0,94843.0,2.20732568]
[1736542998134,8e-07,94844.0,94843.0,2.40732568]
[1736542999934,8e-07,94844.0,94843.0,2.10732568]
[1736543000194,8e-07,94844.0,94843.0,2.03432568]
[1736543000874,0.0775008,94844.0,94843.0,1.71915192]
[1736543001084,0.0775008,94844.0,94843.0,0.1060858]
[1736543001478,0.0775008,94844.0,94843.0,0.2060858]
[1736543001728,0.0775008,94844.0,94843.0,0.1970858]
[1736543001928,0.0775,94844.0,94843.0,0.1950858]
[1736543002065,0.0785,94844.0,94843.0,0.2040858]
[1736543002409,0.0775,94844.0,94843.0,0.1950858]
[1736543002560,0.0775,94844.0,94843.0,0.0950858]
[1736543003447,0.0775,94844.0,94843.0,0.1950858]
[1736543003656,0.0775,94844.0,94843.0,0.0950858]
[1736543003870,0.0785,94844.0,94843.0,0.1070858]
[1736543004520,0.0785,94844.0,94843.0,0.1030858]
[1736543005156,0.0785,94844.0,94843.0,0.1070858]
[1736543006155,0.0785,94844.0,94843.0,0.2070858]
[1736543006563,0.0785,94844.0,94843.0,0.1070858]
[1736543007158,0.0785,94844.0,94843.0,0.2070858]
[1736543007342,0.1268,94844.0,94843.0,0.012]
[1736543007536,0.1268,94844.0,94843.0,0.112]
[1736543008376,0.1268,94844.0,94843.0,0.008]
[1736543008575,0.210874,94843.0,94842.0,0.0950858]
[1736543009784,0.1258,94844.0,94843.0,0.0950858]
[1736543009994,0.0775,94844.0,94843.0,0.1950858]
[1736543010403,0.0775,94844.0,94843.0,1.6950858]
[1736543010992,0.0775,94844.0,94843.0,0.1950858]
[1736543011577,0.0775,94844.0,94842.0,0.0950858]
[1736543011969,0.0775,94844.0,94843.0,0.102]
[1736543012148,0.0775,94844.0,94843.0,0.002]
[1736543012597,0.0775,94844.0,94843.0,0.001]
[1736543012771,0.210874,94843.0,94842.0,0.1960858]
[1736543013312,0.210874,94843.0,94842.0,0.0960858]
[1736543013528,0.210874,94843.0,94842.0,0.001]
[1736543013876,0.218594,94843.0,94842.0,0.0960858]
[1736543014286,0.218594,94843.0,94842.0,0.0950858]
[1736543014702,0.218594,94843.0,94842.0,0.0960858]
[1736543015233,0.218594,94843.0,94842.0,0.0970858]
[1736543016102,0.0775,94844.0,94843.0,0.0950858]
[1736543016314,0.0806,94852.0,94851.0,0.0950858]
[1736543016515,0.2110208,94854.0,94853.0,0.1]
[1736543016726,0.2110208,94854.0,94853.0,0.1950858]
[1736543017165,0.0001708,94854.0,94853.0,0.1950858]
[1736543017535,0.2110208,94854.0,94853.0,0.1950858]
[1736543017739,0.0001708,94854.0,94853.0,0.1950858]
[1736543018145,0.0001708,94854.0,94853.0,0.1960858]
[1736543018346,0.0001708,94854.0,94853.0,0.1970858]
[1736543025496,0.2110208,94854.0,94853.0,0.1970858]
[1736543029919,0.2110208,94854.0,94853.0,0.002]
[1736543030876,0.3610208,94854.0,94853.0,0.002]
[1736543031090,0.3610208,94854.0,94853.0,0.001]
[1736543031286,0.3610208,94854.0,94853.0,0.002]
[1736543031539,0.3610208,94854.0,94853.0,0.001]
[1736543033471,0.46532056,94854.0,94853.0,0.001]
[1736543039310,0.47304056,94854.0,94853.0,0.001]
[1736543040533,0.57734032,94854.0,94853.0,0.001]
[1736543040775,0.65844032,94854.0,94853.0,0.001]
[1736543041012,0.70624032,94854.0,94853.0,0.001]
[1736543041655,0.210897,94833.0,94832.0,0.0950858]
[1736543042399,0.291997,94833.0,94830.0,0.0950858]
[1736543042622,0.00772,94832.0,94830.0,0.0950858]
[1736543042872,0.210901,94831.0,94830.0,0.0950858]
[1736543043354,0.09412904,94838.0,94837.0,0.1950858]
[1736543043785,0.09412904,94838.0,94837.0,1.6950858]
[1736543043991,0.2186,94841.0,94837.0,1.6950858]
[1736543044553,0.21088,94841.0,94837.0,1.6950858]
[1736543044734,0.21088,94841.0,94840.0,0.1]
[1736543045169,0.21188,94841.0,94840.0,0.1]
[1736543045393,0.001,94841.0,94840.0,1.6950858]
[1736543045655,0.001,94841.0,94840.0,0.1950858]
[1736543045787,0.210858,94851.0,94850.0,0.1950858]
[1736543051072,0.210858,94851.0,94850.0,0.1]
[1736543051283,0.210868,94846.0,94845.0,0.1950858]
[1736543051662,0.218588,94846.0,94845.0,0.0950858]
[1736543051870,0.218588,94846.0,94845.0,0.1950858]
[1736543052983,0.219588,94846.0,94845.0,0.1950858]
[1736543053212,0.220588,94846.0,94845.0,0.1950858]
[1736543053424,0.002,94846.0,94845.0,0.1950858]
[1736543053844,0.002,94846.0,94845.0,1.6950858]
[1736543054855,0.003,94846.0,94845.0,1.6950858]
[1736543055051,0.003,94846.0,94845.0,1.82238556]
[1736543055282,0.0001708,94854.0,94853.0,0.310852]
[1736543056332,0.0001708,94854.0,94853.0,0.1950858]
[1736543057075,0.0001708,94854.0,94853.0,0.0950858]
[1736543057485,0.0001708,94854.0,94853.0,0.1960858]
[1736543057885,0.0001708,94854.0,94853.0,0.0960858]
[1736543058308,0.0001708,94854.0,94853.0,0.0990858]
[1736543058531,0.0001708,94854.0,94853.0,0.1990858]
[1736543059443,0.0001708,94854.0,94853.0,0.0990858]
[1736543059641,0.0001708,94854.0,94853.0,0.1990858]
[1736543064654,0.0001708,94854.0,94853.0,0.4099378]
[1736543065228,0.0001708,94854.0,94853.0,1.9099378]
[1736543068183,0.0001708,94854.0,94853.0,1.9104378]
[1736543068387,0.0001708,94854.0,94853.0,2.03773756]
[1736543068803,0.0001708,94854.0,94853.0,2.11523756]
[1736543069616,0.0001708,94854.0,94853.0,2.11223756]
[1736543070039,0.0011708,94854.0,94853.0,2.12123756]
[1736543070212,0.0011708,94854.0,94853.0,0.62123756]
[1736543070623,0.0011708,94854.0,94853.0,0.62023756]
[1736543070861,0.0011708,94854.0,94853.0,2.12023756]
[1736543071247,0.0011708,94854.0,94853.0,2.12123756]
[1736543071784,0.0011708,94854.0,94853.0,2.12023756]
[1736543071990,0.0011708,94854.0,94853.0,2.13603154]
[1736543073489,0.0011708,94854.0,94853.0,2.28343154]
[1736543074142,0.0006708,94854.0,94853.0,2.28343154]
[1736543074551,0.0006708,94854.0,94853.0,2.53343154]
[1736543075922,0.0006708,94854.0,94853.0,2.33343154]
[1736543077571,0.0006708,94854.0,94853.0,2.23343154]
[1736543077783,0.0006708,94854.0,94853.0,2.33343154]
[1736543077980,0.0006708,94854.0,94853.0,0.31288556]
[1736543078461,0.0006708,94854.0,94853.0,1.81288556]
[1736543081513,0.0006708,94854.0,94853.0,0.31288556]
[1736543081650,0.0006708,94854.0,94853.0,0.2085858]
[1736543081857,0.0006708,94854.0,94853.0,1.7085858]
[1736543085821,0.0006708,94854.0,94853.0,1.7080858]
[1736543086875,0.0006708,94854.0,94853.0,0.2080858]
[1736543087467,0.0006708,94854.0,94853.0,1.7080858]
[1736543095847,0.0006708,94854.0,94853.0,1.6080858]
[1736543096405,0.0006708,94854.0,94853.0,1.7080858]
[1736543097213,0.0006708,94854.0,94853.0,0.2080858]
[1736543097859,0.0006708,94854.0,94853.0,1.7080858]
[1736543098621,0.0006708,94854.0,94853.0,1.6080858]
[1736543099199,0.0006708,94854.0,94853.0,0.1080858]
[1736543099764,0.0006708,94854.0,94853.0,0.2080858]
[1736543100170,0.0006708,94854.0,94853.0,0.1080858]
[1736543100605,0.0006708,94854.0,94853.0,0.2080858]
[1736543100940,0.0792708,94854.0,94853.0,0.2080858]
[1736543101730,0.0792708,94854.0,94853.0,0.2040858]
[1736543102283,0.0786,94854.0,94853.0,0.1950858]
[1736543102732,0.0786,94854.0,94853.0,0.1960858]
[1736543102929,0.0786,94854.0,94853.0,0.1950858]
[1736543107973,0.0786,94854.0,94853.0,1.6950858]
[1736543110076,0.218565,94856.0,94855.0,0.1]
[1736543111653,0.21847229,94856.0,94855.0,0.1]
[1736543112869,0.21947229,94856.0,94855.0,0.1]
[1736543116074,0.21175229,94856.0,94855.0,0.1950858]
[1736543116298,0.001,94856.0,94855.0,0.37048556]
[1736543116503,0.001,94856.0,94855.0,0.62048556]
[1736543116735,0.001,94856.0,94855.0,0.80008556]
[1736543116949,0.001,94856.0,94855.0,2.32089425]
[1736543117153,0.09429984,94868.0,94867.0,0.1950858]
[1736543117370,0.0001708,94868.0,94867.0,0.61280656]
[1736543117785,0.0001708,94868.0,94867.0,2.11280656]
[1736543117991,0.0001708,94868.0,94867.0,1.79938556]
[1736543119193,0.0001708,94868.0,94867.0,1.80138556]
[1736543120848,0.0001708,94868.0,94867.0,1.80838556]
[1736543121079,0.0001708,94868.0,94867.0,1.80638556]
[1736543121306,0.0001708,94868.0,94867.0,1.7020858]
[1736543121525,0.0001708,94868.0,94867.0,0.01]
[1736543121729,0.02126918,94868.0,94867.0,0.01]
[1736543122340,0.08152542,94868.0,94867.0,0.007]
[1736543122663,0.09298503,94868.0,94867.0,0.008]
[1736543122893,0.09193041,94868.0,94867.0,0.008]
[1736543123309,0.09298503,94868.0,94867.0,0.008]
[1736543123517,0.31450795,94868.0,94867.0,0.008]
[1736543123744,0.24193041,94868.0,94867.0,0.008]
[1736543124106,0.24193041,94868.0,94867.0,0.001]
[1736543124766,0.210854,94852.0,94851.0,0.0950858]
[1736543124963,0.218574,94852.0,94851.0,0.0950858]
[1736543125378,0.218574,94852.0,94829.0,0.02135733]
[1736543125379,0.210863,94848.0,94847.0,0.1950858]
[1736543125585,0.287863,94848.0,94847.0,0.1950858]
[1736543126559,0.287863,94848.0,94847.0,0.1]
[1736543127023,0.287863,94848.0,94847.0,0.1950858]
[1736543127629,0.287863,94848.0,94847.0,0.1970858]
[1736543127833,0.287863,94848.0,94847.0,0.1950858]
[1736543128169,0.287863,94848.0,94847.0,0.1960858]
[1736543128780,0.287863,94848.0,94847.0,0.1950858]
[1736543129315,0.287863,94848.0,94847.0,0.1]
[1736543129521,0.287863,94848.0,94834.0,1.5]
[1736543129522,0.210877,94842.0,94840.0,0.1950858]
[1736543129723,0.210877,94842.0,94837.0,0.1]
[1736543129724,0.210885,94838.0,94837.0,0.1]
[1736543130825,0.421771,94838.0,94837.0,0.1]
[1736543131360,0.421771,94838.0,94835.0,0.1]
[1736543131573,0.422771,94838.0,94836.0,0.1]
[1736543131999,0.00339158,94837.0,94836.0,0.1]
[1736543132402,0.21089,94836.0,94835.0,0.1]
[1736543132715,0.21430092,94836.0,94835.0,0.1]
[1736543132911,0.210899,94832.0,94831.0,0.1950858]
[1736543133491,0.21430694,94832.0,94831.0,0.1950858]
[1736543134573,0.21530694,94832.0,94831.0,0.1950858]
[1736543136220,0.21630694,94832.0,94831.0,0.1950858]
[1736543138715,0.21630694,94832.0,94831.0,1.6950858]
[1736543140348,0.21630694,94832.0,94831.0,0.1950858]
[1736543145935,0.21525255,94832.0,94831.0,0.1950858]
[1736543151289,0.00540794,94832.0,94831.0,0.1950858]
[1736543151533,0.002,94832.0,94831.0,0.1950858]
[1736543151794,0.002,94832.0,94831.0,1.6950858]
[1736543151983,0.00772,94834.0,94833.0,0.1]
[1736543152492,0.30493818,94862.0,94844.0,0.0950858]
[1736543152493,0.210868,94846.0,94844.0,0.0950858]
[1736543152707,0.210857,94851.0,94850.0,0.1950858]
[1736543153965,0.0809,94858.0,94850.0,0.1950858]
[1736543153966,0.210833,94862.0,94861.0,0.0950858]
[1736543154951,0.210825,94865.0,94861.0,0.1950858]
[1736543155387,0.421651,94865.0,94861.0,0.1950858]
[1736543155952,0.002,94862.0,94861.0,0.1950858]
[1736543156392,0.421651,94865.0,94861.0,0.1]
[1736543156619,0.421656,94864.0,94861.0,0.1]
[1736543157342,0.421656,94864.0,94861.0,0.1960858]
[1736543157343,0.421657,94864.0,94861.0,0.1960858]
[1736543157554,0.421657,94864.0,94861.0,0.101]
[1736543157720,0.421657,94864.0,94861.0,0.1]
[1736543158121,0.424657,94864.0,94861.0,0.1]
[1736543160407,0.214828,94864.0,94863.0,0.0950858]
[1736543160615,0.425657,94864.0,94861.0,0.1]
[1736543160843,0.425657,94864.0,94861.0,0.1950858]
[1736543161239,0.21083,94863.0,94861.0,0.1]
[1736543161652,0.421661,94863.0,94861.0,0.1]
[1736543163995,0.422661,94863.0,94861.0,0.1]
[1736543164229,0.424661,94863.0,94861.0,0.1]
[1736543164450,0.424661,94863.0,94854.0,0.0950858]
[1736543164451,0.210848,94855.0,94854.0,0.0950858]
[1736543164626,0.210848,94855.0,94854.0,0.1]
[1736543164829,0.210857,94851.0,94850.0,0.1950858]
[1736543165278,0.210857,94851.0,94850.0,0.1]
[1736543165536,0.21427024,94851.0,94850.0,0.1950858]
[1736543166523,0.00341324,94851.0,94850.0,0.1950858]
[1736543166998,0.210856,94852.0,94851.0,0.0950858]
[1736543167435,0.21426401,94852.0,94851.0,0.1950858]
[1736543168458,0.21526401,94852.0,94851.0,0.1950858]
[1736543168770,0.21826401,94852.0,94851.0,0.1950858]
[1736543169795,0.21726401,94852.0,94851.0,0.1950858]
[1736543170167,0.21426401,94852.0,94851.0,0.1950858]
[1736543170375,0.21426401,94852.0,94851.0,0.0950858]
[1736543170507,0.21426401,94852.0,94850.0,0.0950858]
[1736543171945,0.21426401,94852.0,94851.0,0.0950858]
[1736543172170,0.21426401,94852.0,94851.0,0.1950858]
[1736543172570,0.21426401,94852.0,94851.0,0.0950858]
[1736543172775,0.21426401,94852.0,94851.0,0.1950858]
[1736543173170,0.21426401,94852.0,94851.0,0.1]
[1736543173448,0.21426401,94852.0,94823.0,0.1]
[1736543173449,0.00340801,94852.0,94847.0,0.0950858]
[1736543173594,0.210872,94844.0,94843.0,0.0950858]
[1736543173824,0.210872,94844.0,94843.0,0.1950858]
[1736543173996,0.21427158,94844.0,94843.0,0.1950858]
[1736543174366,0.21427004,94844.0,94843.0,0.1950858]
[1736543174990,0.21427004,94844.0,94843.0,1.6950858]
[1736543178867,0.21427004,94844.0,94843.0,0.0950858]
[1736543179070,0.210872,94844.0,94843.0,0.1950858]
[1736543179276,0.0033993,94844.0,94843.0,0.1950858]
[1736543179595,0.210869,94846.0,94845.0,0.1]
[1736543180005,0.0825,94854.0,94841.0,0.0950858]
[1736543180227,0.210877,94842.0,94841.0,0.1]
[1736543180419,0.210877,94842.0,94841.0,0.1950858]
[1736543181531,0.210877,94842.0,94601.0,60.0]
[1736543181532,0.002,94842.0,94830.0,0.1]
[1736543181741,0.0768,94840.0,94834.0,0.1]
[1736543181939,0.210892,94835.0,94832.0,0.0950858]
[1736543182314,0.210897,94833.0,94832.0,0.0950858]
[1736543182523,0.22201329,94833.0,94832.0,0.0950858]
[1736543184239,0.22301329,94833.0,94832.0,0.0950858]
[1736543184443,0.22601329,94833.0,94832.0,0.0950858]
[1736543185273,0.22601329,94833.0,94832.0,0.1950858]
[1736543185470,0.22601329,94833.0,94832.0,0.0950858]
[1736543185676,0.22601329,94833.0,94832.0,0.1950858]
[1736543186494,0.22601329,94833.0,94832.0,0.0950858]
[1736543186912,0.22601329,94833.0,94832.0,0.1950858]
[1736543188758,0.21829329,94833.0,94832.0,0.1950858]
[1736543189232,0.21829329,94833.0,94832.0,0.0950858]
[1736543189671,0.21829329,94833.0,94832.0,0.1950858]
[1736543190946,0.21829329,94833.0,94830.0,0.1950858]
[1736543191148,0.21829329,94833.0,94832.0,0.1]
[1736543191335,0.21829329,94833.0,94832.0,0.1950858]
[1736543191509,0.21829329,94833.0,94832.0,0.1]
[1736543191713,0.00739629,94833.0,94832.0,0.1]
[1736543191917,0.00639629,94833.0,94832.0,0.1]
[1736543193410,0.00739629,94833.0,94832.0,0.1]
[1736543193917,0.00639629,94833.0,94832.0,0.1]
[1736543194819,0.00739629,94833.0,94832.0,0.1]
[1736543196882,0.00739629,94833.0,94832.0,0.29938556]
[1736543197093,0.00739629,94833.0,94832.0,0.37138556]
[1736543197301,0.004,94833.0,94832.0,0.5933685]
[1736543197507,0.004,94833.0,94832.0,2.3690685]
[1736543197723,0.001,94833.0,94832.0,2.3690685]
[1736543198144,0.002,94833.0,94832.0,2.3690685]
[1736543198288,0.001,94833.0,94832.0,2.3690685]
[1736543198489,0.210836,94861.0,94860.0,0.1950858]
[1736543198869,0.21834538,94861.0,94860.0,0.1950858]
[1736543202207,0.21834538,94861.0,94856.0,0.1]
[1736543202423,0.210844,94857.0,94856.0,0.1]
[1736543202642,0.00750938,94861.0,94860.0,0.1950858]
[1736543202821,0.210828,94864.0,94863.0,0.1950858]
[1736543204155,0.212828,94864.0,94863.0,0.1950858]
[1736543204387,0.210828,94864.0,94863.0,0.1950858]
[1736543206279,0.210828,94864.0,94863.0,0.1]
[1736543206504,0.210828,94864.0,94863.0,0.001]
[1736543206697,0.25379886,94864.0,94863.0,0.001]
[1736543206937,0.25379886,94864.0,94832.0,0.10429976]
[1736543206938,0.0465,94861.0,94845.0,0.0950858]
[1736543207114,0.210857,94851.0,94850.0,0.1]
[1736543207318,0.210868,94846.0,94845.0,0.1950858]
[1736543207729,0.210868,94846.0,94844.0,0.1950858]
[1736543207902,0.21087,94845.0,94842.0,0.0950858]
[1736543208113,0.21087,94845.0,94842.0,0.1]
[1736543208309,0.42174,94845.0,94842.0,0.1]
[1736543209143,0.210904,94830.0,94829.0,0.1]
[1736543209341,0.210908,94828.0,94827.0,0.0950858]
[1736543209884,0.210908,94828.0,94827.0,0.1950858]
[1736543210851,0.211908,94828.0,94827.0,0.1950858]
[1736543211247,0.210908,94828.0,94827.0,0.1950858]
[1736543211475,0.211908,94828.0,94827.0,0.1950858]
[1736543211645,0.22474953,94828.0,94827.0,0.1950858]
[1736543212749,0.22374953,94828.0,94827.0,0.1950858]
[1736543213192,0.22474953,94828.0,94827.0,0.1950858]
[1736543213658,0.22474953,94828.0,94827.0,1.6950858]
[1736543214073,0.210908,94828.0,94827.0,1.6950858]
[1736543214317,0.211908,94828.0,94827.0,1.6846858]
[1736543215897,0.211908,94828.0,94827.0,0.1846858]
[1736543216094,0.2237467,94828.0,94827.0,0.1846858]
[1736543216498,0.2247467,94828.0,94827.0,0.1846858]
[1736543216706,0.2237467,94828.0,94827.0,0.1846858]
[1736543217110,0.2237467,94828.0,94815.0,8.53e-05]
[1736543217111,0.25986695,94828.0,94815.0,8.53e-05]
[1736543217315,0.210934,94816.0,94815.0,8.53e-05]
[1736543217480,0.22380401,94816.0,94815.0,0.1000853]
[1736543217677,0.22380401,94816.0,94815.0,8.53e-05]
[1736543217887,0.28836971,94816.0,94815.0,8.53e-05]
[1736543218728,0.28836971,94816.0,94815.0,0.1000853]
[1736543219139,0.28836971,94816.0,94815.0,0.0020853]
[1736543219702,0.22380401,94816.0,94815.0,0.1020853]
[1736543220468,0.22380401,94816.0,94815.0,0.1060853]
[1736543220865,0.22380401,94816.0,94815.0,0.1040853]
[1736543221486,0.22380401,94816.0,94815.0,0.1000853]
[1736543221692,0.22380401,94816.0,94815.0,0.1010853]
[1736543222305,0.28836971,94816.0,94815.0,0.0010853]
[1736543222643,0.43836971,94816.0,94815.0,0.0010853]
[1736543223447,0.37380401,94816.0,94815.0,0.0857711]
[1736543223860,0.37380401,94816.0,94815.0,0.0010853]
[1736543224671,0.37380401,94816.0,94815.0,0.0857711]
[1736543225432,0.01287001,94816.0,94815.0,0.0857711]
[1736543225664,0.01287001,94816.0,94815.0,0.1857711]
[1736543225901,0.210924,94821.0,94815.0,0.1857711]
[1736543225902,0.210924,94821.0,94819.0,0.1]
[1736543226282,0.01274236,94820.0,94819.0,0.1]
[1736543226818,0.210924,94821.0,94820.0,0.1]
[1736543227024,0.211924,94821.0,94820.0,0.1]
[1736543227218,0.22467217,94821.0,94820.0,0.1]
[1736543227367,0.22567217,94821.0,94820.0,0.1]
[1736543227560,0.22567217,94821.0,94819.0,0.1]
[1736543227561,0.22367217,94821.0,94819.0,0.1]
[1736543227784,0.22367217,94821.0,94820.0,0.1]
[1736543228959,0.22367217,94821.0,94820.0,0.102]
[1736543230124,0.22367217,94821.0,94820.0,0.1]
[1736543230502,0.22367217,94821.0,94820.0,0.103]
[1736543231874,0.22367217,94821.0,94820.0,0.1876858]
[1736543232275,0.22367217,94821.0,94820.0,0.103]
[1736543233191,0.22367217,94821.0,94820.0,0.1]
[1736543233385,0.49991829,94821.0,94815.0,8.53e-05]
[1736543233588,0.01274817,94821.0,94816.0,0.1]
[1736543233937,0.210929,94819.0,94816.0,0.1]
[1736543234137,0.210932,94817.0,94816.0,0.1]
[1736543234340,0.22373361,94817.0,94816.0,0.1]
[1736543234534,0.22373361,94817.0,94815.0,8.53e-05]
[1736543236837,0.22373361,94817.0,94815.0,0.0010853]
[1736543237043,0.22373361,94817.0,94816.0,0.1]
[1736543237255,0.22373361,94817.0,94815.0,0.0010853]
[1736543237652,0.30059227,94817.0,94815.0,0.0010853]
[1736543238010,0.00105462,94816.0,94815.0,0.0010853]
[1736543238190,0.15105462,94816.0,94815.0,0.0010853]
[1736543238343,0.16384022,94816.0,94815.0,0.0010853]
[1736543238771,0.26813998,94816.0,94815.0,0.0010853]
[1736543238979,0.37138512,94816.0,94815.0,0.0010853]
[1736543240130,0.37438512,94816.0,94815.0,8.53e-05]
[1736543240342,0.38038512,94816.0,94815.0,8.53e-05]
[1736543240546,0.37738512,94816.0,94815.0,8.53e-05]
[1736543240755,0.37138512,94816.0,94815.0,8.53e-05]
[1736543240966,0.38138512,94816.0,94815.0,0.0010853]
[1736543241189,0.38138512,94816.0,94814.0,8.53e-05]
[1736543241190,0.38138512,94816.0,94814.0,6e-07]
[1736543241406,0.66170534,94815.0,94814.0,6e-07]
[1736543241621,0.66065072,94815.0,94814.0,6e-07]
[1736543241849,0.67338017,94815.0,94814.0,6e-07]
[1736543243984,0.67738017,94815.0,94814.0,6e-07]
[1736543244196,0.68538017,94815.0,94814.0,0.0010006]
[1736543244394,0.66606597,94815.0,94814.0,0.0010006]
[1736543244640,0.65806597,94815.0,94814.0,6e-07]
[1736543244833,0.56776621,94815.0,94814.0,0.0020006]
[1736543246238,0.56276621,94815.0,94814.0,0.0010006]
[1736543246439,0.55876621,94815.0,94814.0,0.0010006]
[1736543246893,0.39438645,94815.0,94814.0,0.0020006]
[1736543247442,0.59421652,94815.0,94814.0,0.0020006]
[1736543247647,0.66171652,94815.0,94814.0,0.0010006]
[1736543247848,0.66971652,94815.0,94814.0,0.0020006]
[1736543248054,0.68003072,94815.0,94814.0,0.0010006]
[1736543248251,0.67203072,94815.0,94814.0,6e-07]
[1736543248876,0.72053072,94815.0,94814.0,6e-07]
[1736543249581,0.72553072,94815.0,94814.0,0.0010006]
[1736543249990,0.72553072,94815.0,94814.0,6e-07]
[1736543250249,0.5002622,94810.0,94809.0,3e-07]
[1736543250453,0.73186172,94810.0,94809.0,3e-07]
[1736543250658,0.72127226,94810.0,94809.0,3e-07]
[1736543251228,0.4565712,94806.0,94805.0,6e-07]
[1736543251471,0.2456142,94805.0,94804.0,9e-07]
[1736543251638,0.0153142,94801.0,94800.0,2e-07]
[1736543251844,0.49806834,94801.0,94800.0,2e-07]
[1736543252017,0.50935439,94801.0,94800.0,2e-07]
[1736543252624,0.0191373,94793.0,94767.0,0.1808627]
[1736543252877,0.211041,94768.0,94767.0,0.1808627]
[1736543253095,0.211038,94770.0,94769.0,0.1808627]
[1736543254854,0.22196527,94770.0,94769.0,0.1808627]
[1736543255458,0.22196527,94770.0,94769.0,0.1818627]
[1736543255665,0.22196527,94770.0,94769.0,0.1808627]
[1736543256122,0.22196527,94770.0,94769.0,0.1818627]
[1736543256340,0.22196527,94770.0,94769.0,0.1808627]
[1736543256994,0.01129135,94770.0,94769.0,0.1808627]
[1736543257208,0.211011,94782.0,94777.0,0.1808627]
[1736543257409,0.01082742,94778.0,94777.0,0.1808627]
[1736543257675,0.211011,94782.0,94781.0,0.1]
[1736543257891,0.211011,94782.0,94779.0,0.1]
[1736543258100,0.22213882,94782.0,94781.0,0.1808627]
[1736543258315,0.211003,94786.0,94785.0,0.1808627]
[1736543259575,0.211004,94785.0,94782.0,0.1]
[1736543259790,0.211026,94775.0,94774.0,0.1]
[1736543259993,0.211026,94775.0,94774.0,0.1808627]
[1736543260207,0.211026,94775.0,94774.0,0.1]
[1736543260418,0.211029,94774.0,94772.0,0.1]
[1736543260623,0.211026,94775.0,94769.0,0.1]
[1736543260624,0.211037,94770.0,94769.0,0.1]
[1736543260842,0.422074,94770.0,94767.0,0.0809481]
[1736543261864,0.422074,94770.0,94769.0,0.003]
[1736543261865,0.211037,94770.0,94769.0,0.003]
[1736543262077,0.211037,94770.0,94767.0,0.0809481]
[1736543262280,0.422074,94770.0,94767.0,0.0809481]
[1736543262522,0.211041,94768.0,94767.0,0.0839481]
[1736543262740,0.211041,94768.0,94767.0,0.0809481]
[1736543264715,0.212041,94768.0,94767.0,0.0809481]
[1736543264895,0.211041,94768.0,94767.0,0.0819481]
[1736543265147,0.211041,94768.0,94767.0,0.0010854]
[1736543265308,0.23783995,94768.0,94767.0,0.0010854]
[1736543265710,0.212041,94768.0,94767.0,0.0010854]
[1736543266314,0.212041,94768.0,94767.0,8.54e-05]
[1736543266730,0.213041,94768.0,94767.0,8.54e-05]
[1736543267704,0.213041,94768.0,94767.0,0.1000854]
[1736543268192,0.213041,94768.0,94767.0,8.54e-05]
[1736543268400,0.213041,94768.0,94767.0,0.1000854]
[1736543268730,0.28548005,94768.0,94767.0,0.1000854]
[1736543269344,0.28548005,94768.0,94767.0,8.54e-05]
[1736543269552,0.28548005,94768.0,94767.0,0.1000854]
[1736543269941,0.28548005,94768.0,94767.0,8.54e-05]
[1736543270152,0.28548005,94768.0,94767.0,0.1000854]
[1736543270307,0.28548005,94768.0,94767.0,8.54e-05]
[1736543271939,0.29597652,94768.0,94767.0,8.54e-05]
[1736543272494,0.44597652,94768.0,94767.0,8.54e-05]
[1736543272743,0.59787628,94768.0,94767.0,8.54e-05]
[1736543273569,0.59687628,94768.0,94767.0,8.54e-05]
[1736543273774,0.61839766,94768.0,94767.0,8.54e-05]
[1736543273907,0.62639766,94768.0,94767.0,0.0010854]
[1736543274121,0.62539766,94768.0,94767.0,0.0010854]
[1736543274313,0.63039766,94768.0,94767.0,0.0010854]
[1736543275397,0.62239766,94768.0,94767.0,8.54e-05]
[1736543275635,0.63139766,94768.0,94767.0,0.0010854]
[1736543275841,0.62639766,94768.0,94767.0,0.0010854]
[1736543276041,0.61739766,94768.0,94767.0,8.54e-05]
[1736543276188,0.63039766,94768.0,94767.0,0.0010854]
[1736543276651,0.72803496,94768.0,94767.0,4e-07]
[1736543277060,0.73303496,94768.0,94767.0,4e-07]
[1736543278003,0.75798567,94768.0,94767.0,4e-07]
[1736543278875,0.23553747,94768.0,94767.0,4e-07]
[1736543279097,0.02449647,94768.0,94767.0,0.28516286]
[1736543279306,0.02449647,94768.0,94767.0,4e-07]
[1736543279538,0.014,94768.0,94767.0,4e-07]
[1736543279740,0.01764034,94768.0,94767.0,4e-07]
[1736543280165,0.211043,94767.0,94766.0,0.1]
[1736543280371,0.01736034,94768.0,94767.0,0.0878627]
[1736543280573,0.00772,94768.0,94767.0,0.1808627]
[1736543280791,0.00772,94768.0,94767.0,0.1818627]
[1736543280971,0.211003,94786.0,94779.0,0.0808627]
[1736543281165,0.00772,94785.0,94779.0,0.0808627]
[1736543281385,0.0383138,94785.0,94779.0,0.0808627]
[1736543281793,0.00772,94784.0,94779.0,0.0808627]
[1736543282197,0.00869747,94783.0,94779.0,0.0808627]
[1736543283049,0.00869747,94783.0,94779.0,0.0818627]
[1736543283267,0.00772,94784.0,94779.0,0.0818627]
[1736543283463,0.00872287,94782.0,94779.0,0.0808627]
[1736543283670,0.00772,94784.0,94779.0,0.0838627]
[1736543283885,0.00872287,94781.0,94779.0,0.0838627]
[1736543284097,0.00772,94784.0,94779.0,0.0838627]
[1736543284098,0.00772,94784.0,94779.0,0.0808627]
[1736543284316,0.00105462,94789.0,94783.0,0.0808627]
[1736543284526,0.00105462,94789.0,94778.0,0.1]
[1736543284527,0.210962,94804.0,94792.0,0.0808627]
[1736543284728,0.210971,94800.0,94792.0,0.0808627]
[1736543285292,0.00768,94803.0,94792.0,0.0808627]
[1736543285508,0.210974,94799.0,94792.0,0.0808627]
[1736543285949,0.421948,94799.0,94792.0,0.0808627]
[1736543286166,0.210974,94799.0,94792.0,0.0808627]
[1736543286371,0.210983,94794.0,94792.0,0.0808627]